{"text_format":"1","workbook":"xlsx","n_sheets":1,"sheets":["závěrečné vyúčtování"],"not_rendered":{"charts":0,"images":1,"macros":1,"external_links":0,"defined_names":6,"comments":1,"pivot_tables":0},"unopened":[],"bounds":{"document_bytes":16777216,"sheet_cells":100000,"rows_first":2000,"rows_last":500,"rows_between":2000,"halvings":0,"cell_chars":16384,"cell_head_chars":4096},"cells_cut":0,"cells_raw":0,"read":"whole","date_system":"1900"}

{"sheet":"závěrečné vyúčtování","index":0,"n_rows":142,"n_cols":28,"rows_kept":142,"cut":false,"hidden":false,"merged":[[26,0,50,9],[54,0,54,3],[76,4,76,5],[75,4,75,5],[56,7,56,9],[55,7,55,9],[54,7,54,9],[72,4,72,5],[71,4,71,5],[16,0,16,4],[16,5,16,9],[17,0,17,4],[17,5,17,9],[74,4,74,5],[20,0,20,4],[20,5,20,9],[21,0,21,4],[22,0,22,4],[22,5,22,9],[18,6,18,7],[21,6,21,7],[18,0,18,4],[19,0,19,4],[19,5,19,9],[57,7,57,9],[6,0,6,9],[8,0,8,4],[8,5,8,9],[9,0,9,4],[9,5,9,9],[11,0,11,4],[11,5,11,9],[12,0,12,4],[12,5,12,9],[112,0,112,9],[68,4,68,5],[67,4,67,5],[66,4,66,5],[63,4,63,5],[61,4,61,5],[55,0,55,3],[56,0,56,3],[13,0,13,4],[13,5,13,9],[15,0,15,4],[15,5,15,9],[113,0,113,9],[114,0,114,9],[90,1,90,9],[92,1,92,9],[95,0,101,9],[104,0,104,5],[104,7,104,9],[106,0,106,5],[106,7,106,9],[108,3,108,4],[85,10,87,10],[57,0,57,3],[69,4,69,5],[70,4,70,5],[73,4,73,5],[85,0,85,5],[62,4,62,5],[65,4,65,5],[64,4,64,5],[83,4,83,5],[82,4,82,5],[81,4,81,5],[80,4,80,5],[79,4,79,5],[78,4,78,5],[77,4,77,5]]}
[null,null,null,null,null,null,null,null,null,null,null,null,null,null,null,null,null,null,null,null,null,null,null,null,null,null,"Dotační programy"]
[null,null,null,null,null,null,null,null,null,null,null,null,null,null,null,null,null,null,null,null,null,null,null,null,null,null,"4.23 Sportovní akce pro rok 2026"]
[null,null,null,null,null,null,null,null,null,null,null,null,null,null,null,null,null,null,null,null,null,null,null,null,null,null,"4.26 Podpora sportovní činnosti dětí a mládeže ve sportovních organizacích 2026"]
[]
[]
[]
["Závěrečné vyúčtování / vypořádání projektu podpořeného \nz Dotačního fondu Libereckého kraje a Závěrečná zpráva o realizaci projektu"]
[null,null,null,null,null,null,null,null,null,null,"Vyplnění žlutých polí je povinné (podbarvení po zadání textu zmizí)."]
["Program (název a číslo):",null,null,null,null,"4.26 Podpora sportovní činnosti dětí a mládeže ve sportovních organizacích 2026",null,null,null,null,"Vyberte správný program z rollboxu"]
["Název projektu:"]
[]
["Název příjemce: "]
["IČO příjemce:"]
["Bankovní spojení příjemce:",null,null,null,null,null,null,null,null,null,"Zadejte číslo bankovního účtu včetně kódu banky."]
[]
["Smlouva číslo: ",null,null,null,null,"OLP/xxxxx/20xx"]
["Termín realizace projektu:"]
["Celková výše způsobilých výdajů vynaložená příjemcem na projekt:"]
["Schválená výše dotace dle smlouvy - ",null,null,null,null,"v Kč:",null,null,"v %:",null,"Opište údaje (Kč i %) ze smlouvy."]
["Celková výše všech ostatních příjmů projektu:"]
["Finanční prostředky doposud vyplacené příjemci  z rozpočtu poskytovatele:",null,null,null,null,null,null,null,null,null,"= výše zálohy dotace vyplacené na tento projekt"]
["Výše dotace dle skutečnosti -  ",null,null,null,null,"v Kč:",{"$f":"IF(F18*J19%>G19,G19,F18*J19%)","v":0},null,"v %:",{"$f":"G22/F18*100","v":{"$error":"#DIV/0!"}}]
["Do rozpočtu poskytovatele bude vráceno:",null,null,null,null,{"$f":"IF(F21-G22<0,0,F21-G22)","v":0},null,null,null,null,"informace pro Vás - bude Vám doplaceno:",{"$f":"G22-F21","v":0}]
[]
["Popis realizace projektu:"]
["(popište činnosti v rámci projektu realizované v termínu realizace projektu - jak byl projekt zrealizován)"]
[null,null,null,null,null,null,null,null,null,null,"Pro odřádkování použijte levý ALT + ENTER."]
[]
[]
[]
[]
[]
[]
[]
[]
[]
[]
[]
[]
[]
[]
[]
[]
[]
[]
[]
[]
[]
[]
[]
[]
[]
["Splnění závazných parametrů:"]
[]
["parametr",null,null,null,"jednotka","hodnota \ndle smlouvy","dosažená hodnota","dokumenty\ndokládající splnění parametru1"]
[null,null,null,null,null,null,null,null,null,null,"Zadejte všechny parametry ze smlouvy.",null,null,null,null,null,null,null,null,null,null,null,null,null,null,null,null,{"$f":"I56","v":0}]
[null,null,null,null,null,null,null,null,null,null,null,null,null,null,null,null,null,null,null,null,null,null,null,null,null,null,null,0]
[null,null,null,null,null,null,null,null,null,null,null,null,null,null,null,null,null,null,null,null,null,null,null,null,null,null,null,0]
[" ",null,null,null,null,null,null,null,null,null,null,null,null,null,null,null,null,null,null,null,null,null,null,null,null,null,null,0]
["Soupis účetních dokladů:",null,null,null,null,null,null,null,null,null,null,null,null,null,null,null,null,null,null,null,null,null,null,null,null,null,null,0]
[" ",null,null,null,null,null,null,null,null,null,null,null,null,null,null,null,null,null,null,null,null,null,null,null,null,null,null,0]
["p. č.","č. daňového, příp. účetního dokladu","datum vystavení dokladu/\nu plátců daně DUZP","datum úhrady daného výdaje","účel výdaje",null,"IČO vystavovatele dokladu","celková \nčástka","z toho hrazeno \nz dotace","z toho hrazeno \nz jiných zdrojů",false,null,null,null,null,null,null,null,null,null,null,null,null,null,null,null,null,"z toho hrazeno \nz dotace"]
[{"$f":"ROW(A63)-ROW($E$62)","v":1},null,null,null,null,null,null,0,{"$f":"IF($K$62=TRUE,H63*$J$22%,0)","v":0},{"$f":"H63-I63","v":0},"Rozmyslete si, jakým způsobem budete chtít vyúčtovávat výdaje. ",null,null,null,null,null,null,null,null,null,null,null,null,null,null,null,null,{"$f":"I63","v":0}]
[2,null,null,null,null,null,null,0,0,{"$f":"H64-I64","v":0},"Jestliže U VŠECH DOKLADŮ automatickým poměrem % dle skutečnosti, ",null,null,null,null,null,null,null,null,null,null,null,null,null,null,null,null,{"$f":"I64","v":0}]
[3,null,null,null,null,null,null,0,0,{"$f":"H65-I65","v":0},"zaškrtněte růžové políčko a vyplňujte pouze celkovou částku.",null,null,null,null,null,null,null,null,null,null,null,null,null,null,null,null,{"$f":"I65","v":0}]
[4,null,null,null,null,null,null,0,0,{"$f":"H66-I66","v":0},null,null,null,null,null,null,null,null,null,null,null,null,null,null,null,null,null,0]
[5,null,null,null,null,null,null,0,0,{"$f":"H67-I67","v":0},null,null,null,null,null,null,null,null,null,null,null,null,null,null,null,null,null,0]
[6,null,null,null,null,null,null,0,0,{"$f":"H68-I68","v":0},"Jestliže budete chtít zadávat částky hrazené z dotace dle vlastního uvážení",null,null,null,null,null,null,null,null,null,null,null,null,null,null,null,null,0]
[7,null,null,null,null,null,null,0,0,{"$f":"H69-I69","v":0},"(poměru), můžete, ale pozor, přepíšete vzorec na automatický přepočet (sl. I).",null,null,null,null,null,null,null,null,null,null,null,null,null,null,null,null,0]
[8,null,null,null,null,null,null,0,0,{"$f":"H70-I70","v":0},null,null,null,null,null,null,null,null,null,null,null,null,null,null,null,null,null,{"$f":"I70","v":0}]
[9,null,null,null,null,null,null,0,0,{"$f":"H71-I71","v":0},null,null,null,null,null,null,null,null,null,null,null,null,null,null,null,null,null,{"$f":"I71","v":0}]
[10,null,null," ",null,null,null,0,0,{"$f":"H72-I72","v":0},null,null,null,null,null,null,null,null,null,null,null,null,null,null,null,null,null,{"$f":"I72","v":0}]
[11,null,null," ",null,null,null,0,0,{"$f":"H73-I73","v":0},null,null,null,null,null,null,null,null,null,null,null,null,null,null,null,null,null,{"$f":"I73","v":0}]
[12,null,null,null,null,null,null,0,0,0,null,null,null,null,null,null,null,null,null,null,null,null,null,null,null,null,null,0]
[13,null,null,null," ",null,null,0,0,{"$f":"H75-I75","v":0},null,null,null,null,null,null,null,null,null,null,null,null,null,null,null,null,null,{"$f":"I75","v":0}]
[14,null,null,null," ",null,null,0,0,{"$f":"H76-I76","v":0},null,null,null,null,null,null,null,null,null,null,null,null,null,null,null,null,null,{"$f":"I76","v":0}]
[15,null,null,null," ",null,null,0,0,{"$f":"H77-I77","v":0},null,null,null,null,null,null,null,null,null,null,null,null,null,null,null,null,null,{"$f":"I77","v":0}]
[16,null,null,null," ",null,null,0,0,{"$f":"H78-I78","v":0},null,null,null,null,null,null,null,null,null,null,null,null,null,null,null,null,null,{"$f":"I78","v":0}]
[17,null,null,null," ",null,null,0,0,{"$f":"H79-I79","v":0},null,null,null,null,null,null,null,null,null,null,null,null,null,null,null,null,null,{"$f":"I79","v":0}]
[18,null,null,null," ",null,null,0,0,{"$f":"H80-I80","v":0},null,null,null,null,null,null,null,null,null,null,null,null,null,null,null,null,null,{"$f":"I80","v":0}]
[19,null,null,null," ",null,null,0,0,{"$f":"H81-I81","v":0},null,null,null,null,null,null,null,null,null,null,null,null,null,null,null,null,null,{"$f":"I81","v":0}]
[20,null,null,null," ",null,null,0,0,{"$f":"H82-I82","v":0},null,null,null,null,null,null,null,null,null,null,null,null,null,null,null,null,null,{"$f":"I82","v":0}]
[21,null,null,null," ",null,null,0,0,{"$f":"H83-I83","v":0},null,null,null,null,null,null,null,null,null,null,null,null,null,null,null,null,null,{"$f":"I83","v":0}]
[22,null,null,null," ",null,null,0,0,{"$f":"H84-I84","v":0},null,null,null,null,null,null,null,null,null,null,null,null,null,null,null,null,null,{"$f":"I84","v":0}]
[" ",null,null,null,null,null,null," "]
["CELKEM:",null,null,null,null,null,null,{"$f":"SUM(H63:H85)","v":0},{"$f":"SUM(I63:I85)","v":0},{"$f":"SUM(J63:J85)","v":0},"Pozor! Celková částka ze soupisu účetních dokladů SE NEROVNÁ výše uvedené částce způsobilých výdajů vynaložených příjemcem na projekt (v buňce F18)."]
[]
["Plátce DPH uvede částky bez DPH."]
["(pro tyto účely je za plátce DPH považována osoba, která uplatňuje nárok odpočtu DPH na vstupu)"]
[" "]
["!","Součástí vyúčtování musí být kopie prvotních daňových dokladů nebo kopie zjednodušených daňových dokladů, příp. kopie účetních dokladů včetně kopií k nim příslušných dokladů o zaplacení (výpisy z bankovního účtu nebo pokladní doklady). "]
[" "]
["!","Všechny doklady musí být označeny pořadovými čísly uvedenými v prvním sloupci soupisu účetních dokladů. \nDoklady o zaplacení pak pořadovými čísly dokladů, ke kterým se platba vztahuje."]
[" "]
["Doplňující informace (fotodokumentace projektu, články, publikace, CD a další):"]
[null,null,null,null,null,null,null,null,null,null,"Pro odřádkování použijte levý ALT + ENTER."]
[]
[]
[]
[]
[]
[]
[" "]
[" "]
["Zpracoval (jméno a podpis):"]
[" ",null,null,null,null,null,null,null,null,"podpis"]
["Schválil (jméno a podpis statutárního zástupce příjemce):"]
[" ",null,null,null,null,null,null,null,null,"podpis"]
["Datum:"]
[" "]
[" "]
[" "]
["[1] Příjemce uvede výčet dokladů přiložených k závěrečné zprávě o realizaci projektu, jimiž je prokazováno splnění závazných parametrů.",null,null,null,null,null,null,null,null,null,"zpět na buňku H55 - dokumenty k parametrům"]
["Účetní doklady jsou průkazné účetní záznamy, které musí obsahovat náležitosti dle zákona č. 563/1991 Sb., o účetnictví, § 11 Účetní doklady."]
["Běžný daňový doklad musí obsahovat náležitosti daňového dokladu dle zákona č. 235/2004 Sb., o dani z přidané hodnoty, § 29 Náležitosti daňového dokladu."]
[" "]
["Stručný výtah:"]
["Účetní doklady jsou průkazné účetní záznamy, které musí obsahovat:"]
["a)","označení účetního dokladu,"]
["b)","obsah účetního případu a jeho účastníky,"]
["c)","peněžní částku nebo informaci o ceně za měrnou jednotku a vyjádření množství,"]
["d)","okamžik vyhotovení účetního dokladu,"]
["e)","okamžik uskutečnění účetního případu, není-li shodný s okamžikem podle písmene d"]
["f)","podpisový záznam podle § 33a odst. 4 osoby odpovědné za účetní případ a podpisový záznam osoby odpovědné za jeho zaúčtování."]
[" "]
[" "]
["Běžný daňový doklad musí obsahovat"]
["a)","obchodní firmu nebo jméno a příjmení, případně název, dodatek jména a příjmení nebo názvu, sídlo nebo místo podnikání, popřípadě trvalý pobyt nebo místo podnikání plátce, který uskutečňuje zdanitelné plnění,"]
["b)","daňové identifikační číslo plátce, který uskutečňuje zdanitelné plnění,"]
["c)","obchodní firmu nebo jméno a příjmení, případně název, dodatek jména a příjmení nebo názvu, sídlo nebo místo podnikání, popřípadě trvalý pobyt nebo místo podnikání plátce, pro něhož se uskutečňuje zdanitelné plnění,"]
["d)","daňové identifikační číslo plátce, pro něhož se uskutečňuje zdanitelné plnění,"]
["e)","evidenční číslo dokladu,"]
["f)","rozsah a předmět zdanitelného plnění,"]
["g)","datum vystavení dokladu,"]
["h)","datum uskutečnění zdanitelného plnění,"]
["i)","výši ceny bez daně z přidané hodnoty celkem,"]
["j)","základní nebo sníženou sazbu daně, případně sdělení, že se jedná o zdanitelné plnění osvobozené od povinnosti uplatnit daň na výstupu podle § 46 nebo § 47,"]
["k)","výši daně celkem zaokrouhlenou na desetihaléře nahoru, popřípadě uvedenou i v haléřích."]
[" "]
[" "]
[" "]
[" "]